bitfinex-derivatives/quotes_SOLF0:USTF0_20260208
["timestamp","ask_amount","ask_price","bid_price","bid_amount"]
[1770526850559,24.37589198,87.257,87.201,12.1732244]
[1770526850857,24.37589198,87.257,87.21,3.36134417]
[1770526855260,24.37589198,87.255,87.21,3.36134417]
[1770526855652,24.37589198,87.253,87.21,3.36134417]
[1770526855855,24.37589198,87.251,87.21,3.36134417]
[1770526856154,24.37589198,87.251,87.22,3.36134417]
[1770526856551,24.37589198,87.249,87.191,13.27480645]
[1770526856861,24.37589198,87.247,87.2,3.36134417]
[1770526857061,24.37589198,87.245,87.2,3.36134417]
[1770526859156,24.37589198,87.245,87.21,3.36134417]
[1770526859859,24.37589198,87.245,87.201,13.77662437]
[1770526859860,24.37589198,87.245,87.22,3.36134417]
[1770526860163,24.37589198,87.257,87.23,3.36134417]
[1770526860360,24.37589198,87.279,87.24,3.36134417]
[1770526860555,24.37589198,87.277,87.24,3.36134417]
[1770526860761,24.37589198,87.275,87.24,3.36134417]
[1770526861067,24.37589198,87.273,87.24,3.36134417]
[1770526861360,24.37589198,87.271,87.24,3.36134417]
[1770526862167,24.37589198,87.269,87.22,3.36134417]
[1770526862467,10.65032276,87.284,87.22,3.36134417]
[1770526862468,24.37589198,87.267,87.22,3.36134417]
[1770526863667,24.37589198,87.267,87.23,3.36134417]
[1770526864966,24.37589198,87.267,87.24,3.36134417]
[1770526865270,24.37589198,87.279,87.25,3.36134417]
[1770526865572,24.37589198,87.279,87.26,3.36134417]
[1770526866361,24.37589198,87.279,87.24,3.36134417]
[1770526866572,24.37589198,87.279,87.25,3.36134417]
[1770526869778,25.23504402,87.309,87.26,3.36134417]
[1770526870074,25.23504402,87.307,87.26,17.17319827]
[1770526870865,25.23504402,87.299,87.253,10.3228]
[1770526872378,25.23504402,87.299,87.27,3.36134417]
[1770526875882,25.23504402,87.299,87.239,14.36624054]
[1770526876077,25.23504402,87.299,87.26,3.36134417]
[1770526877775,25.23504402,87.299,87.262,10.3217]
[1770526879278,25.23504402,87.299,87.252,10.3229]
[1770526880280,25.36646894,87.289,87.224,14.54068417]
[1770526880480,25.36646894,87.289,87.231,14.54068417]
[1770526881684,25.36646894,87.289,87.24,3.36144066]
[1770526884788,25.36646894,87.279,87.22,15.04116261]
[1770526884989,25.36646894,87.279,87.24,3.36144066]
[1770526888799,25.36646894,87.293,87.243,14.92922088]
[1770526889096,25.36646894,87.293,87.25,3.36144066]
[1770526889594,25.36646894,87.293,87.189,160.695]
[1770526889595,25.36646894,87.289,87.24,3.36144066]
[1770526890702,25.36646894,87.289,87.242,10.3241]
[1770526891800,25.36646894,87.289,87.25,3.36144066]
[1770526892699,25.36646894,87.289,87.242,10.3241]
[1770526894004,25.36646894,87.289,87.189,160.695]
[1770526894005,25.36646894,87.279,87.229,10.3256]
[1770526894904,25.36646894,87.269,87.212,10.3276]
[1770526895304,25.36646894,87.259,87.21,3.36144066]
[1770526898499,3.36144066,87.25,87.19,26.14793929]
[1770526898704,25.37530009,87.249,87.19,29.50937995]
[1770526899202,25.37530009,87.249,87.192,10.33]
[1770526899404,25.37530009,87.249,87.2,3.36144066]
[1770526903700,25.37530009,87.249,87.192,10.33]
[1770526903900,25.37530009,87.229,87.17,3.36144066]
[1770526904102,25.37530009,87.229,87.18,3.36144066]
[1770526904305,25.37530009,87.229,87.2,3.36144066]
[1770526905104,25.37530009,87.229,87.19,3.36144066]
[1770526905702,25.37530009,87.229,87.19,13.69164066]
[1770526906607,25.37530009,87.229,87.19,3.36144066]
[1770526908600,25.37530009,87.229,87.182,15.94313095]
[1770526908803,25.37530009,87.229,87.19,3.36144066]
[1770526909708,25.37530009,87.229,87.2,3.36144066]
[1770526910313,3.36144066,87.26,87.21,3.36144066]
[1770526910907,3.36144066,87.27,87.211,10.3278]
[1770526911114,3.36144066,87.27,87.22,3.36144066]
[1770526912314,25.37530009,87.269,87.22,3.36144066]
[1770526913011,25.37530009,87.269,87.211,10.3278]
[1770526913213,25.37530009,87.267,87.211,10.3278]
[1770526914705,25.37530009,87.267,87.21,3.36144066]
[1770526914913,25.37530009,87.259,87.21,3.36144066]
[1770526915115,25.37530009,87.259,87.2,3.36144066]
[1770526916216,25.37530009,87.249,87.2,3.36144066]
[1770526917706,14.17086196,87.292,87.136,34.43]
[1770526917707,25.37530009,87.239,87.186,23.98576989]
[1770526917908,25.37530009,87.229,87.186,23.98576989]
[1770526919507,25.37530009,87.229,87.172,23.98576989]
[1770526919704,25.37530009,87.229,87.18,3.36144066]
[1770526920815,25.37530009,87.229,87.172,23.98576989]
[1770526921411,25.37530009,87.227,87.172,23.98576989]
[1770526922513,25.37530009,87.223,87.158,23.98576989]
[1770526922823,14.17086196,87.266,87.109,183.34]
[1770526922824,25.37530009,87.209,87.15,3.36144066]
[1770526923018,25.37530009,87.189,87.132,23.98576989]
[1770526923716,25.37530009,87.187,87.132,23.98576989]
[1770526924222,25.37530009,87.169,87.12,3.36144066]
[1770526924409,25.37530009,87.169,87.13,3.36144066]
[1770526926625,25.37530009,87.169,87.12,3.36144066]
[1770526926826,25.37530009,87.169,87.13,3.36144066]
[1770526930720,25.37530009,87.169,87.066,1.99690709]
[1770526930721,25.46270064,87.199,87.16,3.36144066]
[1770526932231,25.46270064,87.199,87.18,3.36144066]
[1770526932630,25.46270064,87.199,87.17,3.36144066]
[1770526933331,25.46270064,87.199,87.153,26.4103905]
[1770526933332,25.46270064,87.199,87.18,3.36144066]
[1770526933629,25.46270064,87.199,87.153,26.4103905]
[1770526933630,25.46270064,87.199,87.17,3.36144066]
[1770526933822,25.46270064,87.199,87.153,26.4103905]
[1770526933823,25.46270064,87.199,87.18,3.36144066]
[1770526934230,26.22349253,87.229,87.18,3.36144066]
[1770526938327,26.22349253,87.227,87.18,3.36144066]
[1770526938528,26.22349253,87.227,87.17,3.36144066]
[1770526938726,26.22349253,87.227,87.174,10.3322]
[1770526938929,26.22349253,87.227,87.18,3.36144066]
[1770526939835,26.22349253,87.227,87.19,3.36144066]
[1770526942633,26.22349253,87.227,87.176,26.49802907]
[1770526942839,26.22349253,87.227,87.18,3.36144066]
[1770526943531,26.22349253,87.227,87.18,3.36576496]
[1770526947139,26.22349253,87.227,87.181,26.49802907]
[1770526947346,26.22349253,87.227,87.19,3.36576496]
[1770526950451,26.22349253,87.227,87.2,3.36576496]
[1770526952053,26.22349253,87.227,87.191,26.49802907]
[1770526959157,26.22349253,87.227,87.169,24.47402069]
[1770526959458,24.87802886,87.219,87.169,24.47402069]
[1770526961960,24.87802886,87.217,87.169,24.47402069]
[1770526967459,24.87802886,87.217,87.171,24.47402069]
[1770526971567,24.87802886,87.209,87.16,27.83978565]
[1770526972866,24.87802886,87.199,87.151,24.47402069]
[1770526973863,24.87802886,87.198,87.151,24.47402069]
[1770526974768,24.87802886,87.195,87.151,24.47402069]
[1770526974967,24.87802886,87.195,87.086,28.10320189]
[1770526974968,24.87802886,87.206,87.161,24.47402069]
[1770526975271,24.87802886,87.205,87.161,24.47402069]
[1770526975772,24.87802886,87.203,87.161,24.47402069]
[1770526976772,35.20692886,87.202,87.161,24.47402069]
[1770526977171,24.87802886,87.201,87.161,24.47402069]
[1770526980876,24.87802886,87.199,87.146,24.47402069]
[1770526981175,55.0759,87.253,87.146,24.47402069]
[1770526981176,24.87802886,87.189,87.146,24.47402069]
[1770526981476,8.83913793,87.198,87.135,24.47402069]
[1770526981477,24.87802886,87.179,87.135,24.47402069]
[1770526981769,24.87802886,87.177,87.135,24.47402069]
[1770526982076,24.87802886,87.175,87.135,24.47402069]
[1770526987877,24.87802886,87.175,87.14,3.36576496]
[1770526988777,24.87802886,87.175,87.135,24.47402069]
[1770526991082,24.87802886,87.175,87.14,27.59709476]
[1770526991282,26.36116207,87.196,87.151,24.2313298]
[1770526991482,26.36116207,87.196,87.16,3.36576496]
[1770526992176,10.3297,87.195,87.161,24.2313298]
[1770526994177,24.58511177,87.208,87.171,24.29131454]
[1770526998981,24.58511177,87.203,87.16,24.29131454]
[1770526999781,24.58511177,87.199,87.16,24.29131454]
[1770527001685,10.3297,87.195,87.16,24.29131454]
[1770527001886,10.3297,87.195,87.16,27.6570795]
[1770527003177,24.58511177,87.199,87.16,27.6570795]
[1770527003385,24.58511177,87.199,87.16,27.65841371]
[1770527003681,10.68716927,87.22,87.16,24.29131454]
[1770527003882,24.58511177,87.228,87.109,160.8433]
[1770527003883,24.58511177,87.228,87.19,3.36709917]
[1770527004083,3.36709917,87.24,87.181,24.29131454]
[1770527004084,24.58511177,87.226,87.181,24.29131454]
[1770527004285,24.58511177,87.224,87.181,24.29131454]
[1770527008588,3.36709917,87.24,87.181,24.29131454]
[1770527008589,24.58511177,87.222,87.181,24.29131454]
[1770527010386,24.58511177,87.222,87.177,10.3318]
[1770527010387,24.58511177,87.222,87.19,27.65841371]
[1770527012786,24.58511177,87.222,87.19,24.29131454]
[1770527020092,25.65904385,87.209,87.164,25.46118674]
[1770527020293,25.65904385,87.209,87.151,25.46118674]
[1770527020498,25.65904385,87.207,87.151,25.46118674]
[1770527020691,25.65904385,87.199,87.151,25.46118674]
[1770527028406,25.65904385,87.199,87.16,28.82828591]
[1770527035212,25.65904385,87.199,87.162,25.46118674]
[1770527035421,25.65904385,87.209,87.171,25.46118674]
[1770527035621,25.65904385,87.207,87.171,25.46118674]
[1770527038217,29.02614302,87.22,87.173,25.46118674]
[1770527038421,25.65904385,87.22,87.181,25.46118674]
[1770527041119,25.65904385,87.22,87.17,28.82828591]
[1770527041314,25.65904385,87.209,87.16,28.82828591]
[1770527041621,25.65904385,87.207,87.16,28.82828591]
[1770527042014,34.49058787,87.206,87.16,28.82828591]
[1770527042213,8.83154402,87.205,87.16,28.82828591]
[1770527042417,25.65904385,87.206,87.16,28.82828591]
[1770527042714,8.83146751,87.205,87.16,28.82828591]
[1770527043021,25.65904385,87.206,87.16,28.82828591]
[1770527043218,34.49003794,87.205,87.16,28.82828591]
[1770527043423,25.65904385,87.205,87.16,28.82828591]
[1770527044425,25.65904385,87.203,87.16,25.46118674]
[1770527044625,25.65904385,87.201,87.16,25.46118674]
[1770527045225,25.65904385,87.199,87.16,25.46118674]
[1770527050021,25.65904385,87.199,87.16,28.82828591]
[1770527056133,25.65904385,87.199,87.16,25.46118674]
[1770527056730,25.65904385,87.199,87.093,62.53320189]
[1770527056934,26.87300322,87.189,87.139,24.68032409]
[1770527057136,26.87300322,87.187,87.141,24.68032409]
[1770527058029,8.84794697,87.186,87.141,24.68032409]
[1770527058233,8.84832343,87.185,87.141,24.68032409]
[1770527058531,8.84832343,87.184,87.141,24.68032409]
[1770527058735,26.87300322,87.187,87.141,24.68032409]
[1770527059033,8.84731594,87.186,87.141,24.68032409]
[1770527059335,8.84731594,87.185,87.141,24.68032409]
[1770527059534,26.87300322,87.186,87.141,24.68032409]
[1770527059535,8.84731594,87.184,87.141,24.68032409]
[1770527059833,26.87300322,87.186,87.141,24.68032409]
[1770527060135,8.84788919,87.185,87.141,24.68032409]
[1770527060332,8.84788919,87.184,87.141,24.68032409]
[1770527060633,8.84788919,87.183,87.141,24.68032409]
[1770527060832,26.87300322,87.186,87.141,24.68032409]
[1770527061031,8.84877589,87.185,87.141,24.68032409]
[1770527061228,8.84877589,87.184,87.141,24.68032409]
[1770527061428,8.84877589,87.183,87.141,24.68032409]
[1770527061629,26.87300322,87.186,87.143,24.68032409]
[1770527061830,8.85006896,87.185,87.143,24.68032409]
[1770527062027,26.87300322,87.186,87.143,24.68032409]
[1770527064133,35.73025531,87.185,87.143,24.68032409]
[1770527064337,26.87300322,87.185,87.143,24.68032409]
[1770527065228,8.85830413,87.184,87.143,24.68032409]
[1770527065439,26.87300322,87.185,87.143,24.68032409]
[1770527065639,8.85769655,87.184,87.143,24.68032409]
[1770527065937,26.87300322,87.185,87.143,24.68032409]
[1770527066239,26.87300322,87.185,87.145,24.68032409]
[1770527066441,26.87300322,87.185,87.086,188.98770189]
[1770527066442,26.87300322,87.204,87.16,3.36870209]
[1770527066639,26.87300322,87.202,87.16,28.04902618]
[1770527066839,26.87300322,87.2,87.16,28.04902618]
[1770527067141,26.87300322,87.198,87.16,28.04902618]
[1770527069642,26.87300322,87.198,87.161,10.3337]
[1770527071739,26.87300322,87.198,87.166,10.333]
[1770527072147,26.87300322,87.196,87.166,10.333]
[1770527072339,8.85534904,87.195,87.166,10.333]
[1770527072539,8.85534904,87.194,87.166,10.333]
[1770527072744,8.85534904,87.193,87.166,10.333]
[1770527073045,26.87300322,87.196,87.166,10.333]
[1770527073243,8.85536436,87.195,87.166,10.333]
[1770527073445,8.85536436,87.194,87.166,10.333]
[1770527073635,8.85536436,87.193,87.162,24.68032409]
[1770527073837,26.87300322,87.196,87.162,24.68032409]
[1770527074040,8.8556408,87.195,87.162,24.68032409]
[1770527074237,8.8556408,87.194,87.162,24.68032409]
[1770527074436,8.8556408,87.193,87.162,24.68032409]
[1770527074646,26.87300322,87.196,87.162,24.68032409]
[1770527074844,8.85565699,87.195,87.162,24.68032409]
[1770527075044,26.87300322,87.207,87.162,24.68032409]
[1770527075247,26.87300322,87.207,87.16,3.36870209]
[1770527075248,8.85521296,87.206,87.171,24.68032409]
[1770527075550,8.85521296,87.205,87.171,24.68032409]
[1770527075750,8.85521296,87.204,87.171,24.68032409]
[1770527075947,26.87300322,87.207,87.171,24.68032409]
[1770527077840,8.85235728,87.206,87.171,24.68032409]
[1770527078038,8.85235728,87.205,87.171,24.68032409]
[1770527078249,8.85235728,87.204,87.171,24.68032409]
[1770527078549,26.87300322,87.207,87.171,24.68032409]
[1770527078550,8.85235728,87.203,87.171,24.68032409]
[1770527078751,8.85235728,87.202,87.171,24.68032409]
[1770527078947,8.85235728,87.201,87.171,24.68032409]
[1770527079147,8.85235728,87.2,87.171,24.68032409]
[1770527079347,26.87300322,87.207,87.171,24.68032409]
[1770527079544,35.11217701,87.206,87.171,24.68032409]
[1770527079748,35.11217701,87.205,87.171,24.68032409]
[1770527079947,8.85248115,87.204,87.171,24.68032409]
[1770527080246,8.85248115,87.203,87.171,24.68032409]
[1770527080447,8.85248115,87.202,87.171,24.68032409]
[1770527080749,26.25969586,87.205,87.171,24.68032409]
[1770527080945,8.85177069,87.204,87.171,24.68032409]
[1770527081248,26.25969586,87.205,87.171,24.68032409]
[1770527081440,8.85147152,87.204,87.171,24.68032409]
[1770527081642,26.25969586,87.205,87.171,24.68032409]
[1770527081849,8.85147152,87.204,87.171,24.68032409]
[1770527082039,26.25969586,87.205,87.171,24.68032409]
[1770527082240,8.85133344,87.204,87.171,24.68032409]
[1770527082449,26.25969586,87.205,87.171,24.68032409]
[1770527082646,8.85130252,87.204,87.171,24.68032409]
[1770527082944,8.85159547,87.203,87.171,24.68032409]
[1770527083150,26.25969586,87.205,87.171,24.68032409]
[1770527083351,8.8509812,87.204,87.171,24.68032409]
[1770527083651,26.25969586,87.205,87.171,24.68032409]
[1770527083840,8.85885078,87.204,87.171,24.68032409]
[1770527084045,26.25969586,87.205,87.171,24.68032409]
[1770527084350,8.86019297,87.204,87.171,24.68032409]
[1770527084650,26.25969586,87.205,87.171,24.68032409]
[1770527084957,35.11978648,87.204,87.171,24.68032409]
[1770527085142,26.25969586,87.204,87.171,24.68032409]
[1770527088857,26.25969586,87.204,87.173,26.75475279]
[1770527089746,26.25969586,87.204,87.175,10.332]
[1770527097562,26.25969586,87.204,87.173,26.75475279]
[1770527098064,26.25969586,87.202,87.165,10.3332]
[1770527098264,26.25969586,87.2,87.165,10.3332]
[1770527098463,3.36870209,87.21,87.165,10.3332]
[1770527098464,26.25969586,87.198,87.165,10.3332]
[1770527098764,26.25969586,87.196,87.165,10.3332]
[1770527104659,26.25969586,87.196,87.163,26.75475279]
[1770527106268,24.4373759,87.219,87.164,26.88088681]
[1770527106468,24.4373759,87.217,87.164,26.88088681]
[1770527106671,24.4373759,87.215,87.164,26.88088681]
[1770527106861,24.4373759,87.213,87.164,26.88088681]
[1770527107061,24.4373759,87.211,87.164,26.88088681]
[1770527107262,24.4373759,87.209,87.164,26.88088681]
[1770527107462,24.4373759,87.207,87.164,26.88088681]
[1770527107662,24.4373759,87.205,87.164,26.88088681]
[1770527107969,24.4373759,87.203,87.167,10.333]
[1770527108165,33.30029096,87.202,87.167,37.21388681]
[1770527108468,8.86291506,87.201,87.167,37.21388681]
[1770527108670,8.86291506,87.2,87.167,37.21388681]
[1770527108868,8.86291506,87.199,87.167,37.21388681]
[1770527109169,24.4373759,87.202,87.167,37.21388681]
[1770527109363,8.86800429,87.201,87.167,37.21388681]
[1770527109562,8.86800429,87.2,87.167,37.21388681]
[1770527109763,8.86800429,87.199,87.167,37.21388681]
[1770527109968,8.86800429,87.198,87.167,37.21388681]
[1770527110166,24.4373759,87.202,87.167,37.21388681]
[1770527110472,8.87014696,87.201,87.168,26.88088681]
[1770527110669,8.87014696,87.2,87.168,26.88088681]
[1770527110870,8.87014696,87.199,87.168,26.88088681]
[1770527111170,8.87014696,87.198,87.168,26.88088681]
[1770527111369,8.87014696,87.197,87.168,26.88088681]
[1770527111570,8.87014696,87.196,87.168,26.88088681]
[1770527111771,24.4373759,87.202,87.168,26.88088681]
[1770527112072,8.87265843,87.201,87.168,26.88088681]
[1770527112270,8.87265843,87.2,87.168,26.88088681]
[1770527112569,8.87265843,87.199,87.168,26.88088681]
[1770527112770,8.87265843,87.198,87.168,26.88088681]
[1770527112972,8.87265843,87.197,87.168,26.88088681]
[1770527113265,8.87265843,87.196,87.168,26.88088681]
[1770527113473,8.87265843,87.195,87.168,26.88088681]
[1770527113671,8.87265843,87.194,87.168,26.88088681]
[1770527113969,8.87265843,87.193,87.168,26.88088681]
[1770527114170,8.87265843,87.192,87.168,26.88088681]
[1770527114368,8.87265843,87.191,87.168,26.88088681]
[1770527114568,24.4373759,87.202,87.168,26.88088681]
[1770527114770,25.88009734,87.2,87.168,26.88088681]
[1770527114970,8.86236451,87.199,87.168,26.88088681]
[1770527115170,8.86236451,87.198,87.168,26.88088681]
[1770527115371,8.86236451,87.197,87.168,26.88088681]
[1770527115572,8.86236451,87.196,87.168,26.88088681]
[1770527115773,8.86236451,87.195,87.168,26.88088681]
[1770527115972,8.86236451,87.194,87.168,26.88088681]
[1770527116164,8.86236451,87.193,87.168,26.88088681]
[1770527116364,8.86236451,87.192,87.168,26.88088681]
[1770527116569,8.86236451,87.191,87.168,26.88088681]
[1770527116769,25.88009734,87.2,87.168,26.88088681]
[1770527116968,8.86240162,87.199,87.168,26.88088681]
[1770527117174,8.86240162,87.198,87.168,26.88088681]
[1770527117373,8.86240162,87.197,87.168,26.88088681]
[1770527117572,8.86240162,87.196,87.168,26.88088681]
[1770527117872,8.86240162,87.195,87.168,26.88088681]
[1770527118074,8.86240162,87.194,87.168,26.88088681]
[1770527118273,8.86240162,87.193,87.168,26.88088681]
[1770527118475,8.86240162,87.192,87.168,26.88088681]
[1770527118663,8.86240162,87.191,87.168,26.88088681]
[1770527118869,25.88009734,87.2,87.168,26.88088681]
[1770527119068,8.86243494,87.199,87.168,26.88088681]
[1770527119266,8.86243494,87.198,87.168,26.88088681]
[1770527119466,8.86243494,87.197,87.168,26.88088681]
[1770527119769,8.86243494,87.196,87.168,26.88088681]
[1770527119969,8.86243494,87.195,87.168,26.88088681]
[1770527120170,8.86243494,87.194,87.168,26.88088681]
[1770527120378,8.86243494,87.193,87.168,26.88088681]
[1770527120577,8.86243494,87.192,87.168,26.88088681]
[1770527120779,8.86243494,87.191,87.168,26.88088681]
[1770527121077,25.88009734,87.2,87.168,26.88088681]
[1770527121278,8.8624626,87.199,87.168,26.88088681]
[1770527121480,8.8624626,87.198,87.168,26.88088681]
[1770527121779,8.8624626,87.197,87.168,26.88088681]
[1770527121980,8.8624626,87.196,87.168,26.88088681]
[1770527122280,8.8624626,87.195,87.168,26.88088681]
[1770527122481,8.8624626,87.194,87.168,26.88088681]
[1770527122681,8.8624626,87.193,87.168,26.88088681]
[1770527122878,8.8624626,87.192,87.168,26.88088681]
[1770527123070,8.8624626,87.191,87.168,26.88088681]
[1770527123274,8.8624626,87.19,87.168,26.88088681]
[1770527123473,25.88009734,87.2,87.168,26.88088681]
[1770527123672,8.8636971,87.199,87.168,26.88088681]
[1770527123872,8.8636971,87.198,87.168,26.88088681]
[1770527124083,8.8636971,87.197,87.168,26.88088681]
[1770527124284,8.8636971,87.196,87.168,26.88088681]
[1770527124482,8.8636971,87.195,87.168,26.88088681]
[1770527124683,8.8636971,87.194,87.168,26.88088681]
[1770527124878,8.8636971,87.193,87.168,26.88088681]
[1770527125075,8.8636971,87.192,87.168,26.88088681]
[1770527125276,8.8636971,87.191,87.168,26.88088681]
[1770527125481,8.8636971,87.19,87.168,26.88088681]
[1770527125681,25.88009734,87.2,87.168,26.88088681]
[1770527125976,8.86353528,87.199,87.168,26.88088681]
[1770527126180,8.86353528,87.198,87.168,26.88088681]
[1770527126381,8.86353528,87.197,87.168,26.88088681]
[1770527126582,8.86353528,87.196,87.168,26.88088681]
[1770527126783,8.86353528,87.195,87.168,26.88088681]
[1770527126983,8.86353528,87.194,87.168,26.88088681]
[1770527127179,8.86353528,87.193,87.168,26.88088681]
[1770527127385,8.86353528,87.192,87.168,26.88088681]
[1770527127582,8.86353528,87.191,87.168,26.88088681]
[1770527127780,8.86353528,87.19,87.168,26.88088681]
[1770527128082,25.88009734,87.2,87.168,26.88088681]
[1770527128280,8.86395543,87.199,87.168,26.88088681]
[1770527128481,8.86395543,87.198,87.168,26.88088681]
[1770527128680,8.86395543,87.197,87.168,26.88088681]
[1770527128886,8.86395543,87.196,87.168,26.88088681]
[1770527129192,8.86395543,87.195,87.168,26.88088681]
[1770527129391,8.86395543,87.194,87.168,26.88088681]
[1770527129690,8.86395543,87.193,87.168,26.88088681]
[1770527129886,8.86395543,87.192,87.168,26.88088681]
[1770527130086,8.86395543,87.191,87.168,26.88088681]
[1770527130290,8.86395543,87.19,87.168,26.88088681]
[1770527130489,25.88009734,87.2,87.168,26.88088681]
[1770527130790,8.86472407,87.199,87.168,26.88088681]
[1770527130986,8.86472407,87.198,87.168,26.88088681]
[1770527131187,8.86472407,87.197,87.168,26.88088681]
[1770527131388,8.86472407,87.196,87.168,26.88088681]
[1770527131590,8.86472407,87.195,87.168,26.88088681]
[1770527131789,8.86472407,87.194,87.168,26.88088681]
[1770527131989,8.86472407,87.193,87.168,26.88088681]
[1770527132188,8.86472407,87.192,87.168,26.88088681]
[1770527132485,8.86472407,87.191,87.168,26.88088681]
[1770527132684,8.86472407,87.19,87.168,26.88088681]
[1770527132888,8.86472407,87.189,87.168,26.88088681]
[1770527133192,25.88009734,87.2,87.168,26.88088681]
[1770527133390,25.88009734,87.198,87.157,26.72987268]
[1770527133593,25.88009734,87.196,87.157,26.72987268]
[1770527133793,25.88009734,87.194,87.157,26.72987268]
[1770527133993,34.74610905,87.193,87.157,26.72987268]
[1770527134194,8.86601171,87.192,87.157,26.72987268]
[1770527134497,8.86601171,87.191,87.157,26.72987268]
[1770527134696,8.86601171,87.19,87.157,26.72987268]
[1770527134896,8.86601171,87.189,87.157,26.72987268]
[1770527135091,8.86601171,87.188,87.157,26.72987268]
[1770527135294,25.88009734,87.186,87.143,26.72987268]
[1770527135494,10.3295,87.197,87.143,26.72987268]
[1770527135495,25.88009734,87.184,87.143,26.72987268]
[1770527135694,25.25674064,87.182,87.143,26.72987268]
[1770527135889,25.25674064,87.18,87.143,26.72987268]
[1770527136096,8.86601171,87.179,87.143,26.72987268]
[1770527136296,8.86601171,87.178,87.143,26.72987268]
[1770527136495,8.86601171,87.177,87.143,26.72987268]
[1770527136697,8.86601171,87.176,87.143,26.72987268]
[1770527136896,8.86601171,87.175,87.143,26.72987268]
[1770527137198,8.86601171,87.174,87.143,26.72987268]
[1770527137399,25.25674064,87.18,87.143,26.72987268]
[1770527137600,8.86409011,87.179,87.143,26.72987268]
[1770527137798,8.86409011,87.178,87.143,26.72987268]
[1770527137998,8.86409011,87.177,87.143,26.72987268]
[1770527138197,8.86409011,87.176,87.143,26.72987268]
[1770527138399,8.86409011,87.175,87.143,26.72987268]
[1770527138594,25.25674064,87.18,87.143,26.72987268]
[1770527138899,8.86293301,87.179,87.143,26.72987268]
[1770527139097,8.86293301,87.178,87.143,26.72987268]
[1770527139290,8.86293301,87.177,87.143,26.72987268]
[1770527139491,25.25674064,87.18,87.143,26.72987268]
[1770527139492,8.86293301,87.176,87.143,26.72987268]
[1770527139697,8.86293301,87.175,87.143,26.72987268]
[1770527139894,25.25674064,87.18,87.143,26.72987268]
[1770527140094,8.86208888,87.179,87.143,26.72987268]
[1770527140299,8.86208888,87.178,87.143,26.72987268]
[1770527140500,8.86208888,87.177,87.143,26.72987268]
[1770527140700,8.86208888,87.176,87.143,26.72987268]
[1770527140890,25.25674064,87.18,87.143,26.72987268]
[1770527141094,8.86146268,87.179,87.143,26.72987268]
[1770527141292,8.86146268,87.178,87.143,26.72987268]
[1770527141496,8.86146268,87.177,87.143,26.72987268]
[1770527141701,8.86146268,87.176,87.143,26.72987268]
[1770527142002,25.25674064,87.18,87.143,26.72987268]
[1770527142203,8.8610264,87.179,87.143,26.72987268]
[1770527142401,8.8610264,87.178,87.143,26.72987268]
[1770527142701,8.8610264,87.177,87.143,26.72987268]
[1770527142901,25.25674064,87.18,87.143,26.72987268]
[1770527143104,8.86076638,87.179,87.143,26.72987268]
[1770527143292,6.638e-05,87.178,87.143,26.72987268]
[1770527143498,25.25674064,87.197,87.143,26.72987268]
[1770527143697,25.25674064,87.197,87.151,26.15221807]
[1770527147897,25.25674064,87.197,87.151,36.48711807]
[1770527149511,25.25674064,87.189,87.14,10.3362]
[1770527149710,25.25674064,87.179,87.14,36.48841807]
[1770527150112,25.25674064,87.179,87.141,26.15221807]
[1770527153514,25.25674064,87.189,87.151,26.15221807]
[1770527155217,25.25674064,87.187,87.151,26.15221807]
[1770527155412,25.25674064,87.187,87.16,3.36728964]
[1770527156618,25.25674064,87.187,87.151,26.15221807]
[1770527156818,25.25674064,87.187,87.154,26.15221807]
[1770527161019,25.25674064,87.199,87.154,26.15221807]
[1770527161221,25.25674064,87.197,87.161,26.15221807]
[1770527161516,25.25674064,87.195,87.161,26.15221807]
[1770527161916,25.25674064,87.193,87.161,26.15221807]
[1770527162111,34.08978992,87.192,87.161,26.15221807]
[1770527162311,8.83304928,87.191,87.161,26.15221807]
[1770527162510,8.83304928,87.19,87.161,26.15221807]
[1770527162714,8.83401398,87.189,87.161,26.15221807]
[1770527162923,8.83401398,87.188,87.161,26.15221807]
[1770527163217,8.83401398,87.187,87.161,26.15221807]
[1770527163520,8.83401398,87.186,87.161,26.15221807]
[1770527163721,8.83401398,87.185,87.161,26.15221807]
[1770527163923,25.25674064,87.192,87.161,26.15221807]
[1770527164120,8.83441315,87.191,87.161,26.15221807]
[1770527164324,8.83441315,87.19,87.161,26.15221807]
[1770527164526,8.83441315,87.189,87.161,26.15221807]
[1770527164725,8.83441315,87.188,87.161,26.15221807]
[1770527164925,25.25674064,87.192,87.161,26.15221807]
[1770527164926,8.83441315,87.187,87.161,26.15221807]
[1770527165124,8.83441315,87.186,87.161,26.15221807]
[1770527165426,8.83441315,87.185,87.161,26.15221807]
[1770527165621,1.315e-05,87.184,87.161,26.15221807]
[1770527165823,25.25674064,87.192,87.161,26.15221807]
[1770527174634,25.25674064,87.192,87.151,26.87608334]
[1770527176241,25.85670014,87.191,87.151,26.87608334]
[1770527177639,25.85670014,87.189,87.151,26.87608334]
[1770527177840,34.62590535,87.188,87.151,26.87608334]
[1770527178142,8.76920521,87.187,87.151,26.87608334]
[1770527178342,8.76920521,87.186,87.151,26.87608334]
[1770527178542,8.76920521,87.185,87.151,26.87608334]
[1770527178741,8.76920521,87.184,87.151,26.87608334]